bitfinex/quotes_BTCUSD_20251201
["timestamp","ask_amount","ask_price","bid_price","bid_amount"]
[1764554457063,0.00039438,87241.0,87240.0,0.0321429]
[1764554457407,0.00139438,87241.0,87240.0,0.0371429]
[1764554457611,0.00039438,87241.0,87240.0,0.0331429]
[1764554457760,0.00039438,87241.0,87240.0,0.0217429]
[1764554457939,0.00139438,87241.0,87240.0,0.0361429]
[1764554458146,0.00039438,87241.0,87240.0,0.0321429]
[1764554458365,0.00039438,87241.0,87240.0,0.0331429]
[1764554458539,0.00139438,87241.0,87240.0,0.0371429]
[1764554459201,0.00139438,87241.0,87240.0,0.0257429]
[1764554459640,0.00139438,87241.0,87240.0,0.01611384]
[1764554459805,0.00039438,87241.0,87240.0,0.01211384]
[1764554460008,0.00139438,87241.0,87240.0,0.01711384]
[1764554460464,0.00039438,87241.0,87240.0,0.01211384]
[1764554460628,0.00139438,87241.0,87240.0,0.00471384]
[1764554460873,0.00139438,87241.0,87240.0,0.00571384]
[1764554462559,0.02519438,87241.0,87240.0,0.00571384]
[1764554462755,0.28950853,87241.0,87240.0,0.00571384]
[1764554462960,0.2889354,87241.0,87240.0,0.00571384]
[1764554463364,0.6119354,87241.0,87240.0,0.00571384]
[1764554463876,0.61116,87241.0,87240.0,0.00071384]
[1764554464075,0.62256,87241.0,87240.0,0.00071384]
[1764554464279,0.61316,87241.0,87240.0,0.00171384]
[1764554464474,0.61116,87241.0,87240.0,0.00071384]
[1764554464840,0.61416,87241.0,87240.0,0.00171384]
[1764554465628,0.62556,87241.0,87240.0,0.00171384]
[1764554465834,0.650058,87241.0,87240.0,0.00171384]
[1764554466036,0.638658,87241.0,87240.0,0.00171384]
[1764554466258,0.61416,87241.0,87240.0,0.00171384]
[1764554466600,0.61116,87241.0,87240.0,0.00071384]
[1764554466855,0.61216,87241.0,87240.0,0.00071384]
[1764554466980,0.61816,87241.0,87240.0,0.00171384]
[1764554467186,0.61116,87241.0,87240.0,0.00071384]
[1764554467419,0.61216,87241.0,87240.0,0.00071384]
[1764554467625,0.62856,87241.0,87240.0,0.00171384]
[1764554469022,0.87376,87241.0,87240.0,0.00171384]
[1764554473278,0.96068318,87241.0,87240.0,0.00171384]
[1764554473471,0.96068318,87241.0,87197.0,0.0185716]
[1764554473472,0.24082821,87200.0,87197.0,0.0185716]
[1764554473682,0.0238,87201.0,87195.0,0.03545189]
[1764554473989,0.01761,87199.0,87197.0,0.01146828]
[1764554474224,0.01761,87199.0,87195.0,0.03545189]
[1764554474419,0.01761,87199.0,87196.0,0.01146841]
[1764554474632,0.24697042,87199.0,87198.0,0.00131884]
[1764554474805,0.01761,87199.0,87198.0,0.00131884]
[1764554475209,0.30588042,87199.0,87198.0,0.00131884]
[1764554475410,0.31316042,87199.0,87198.0,0.00131884]
[1764554476044,0.30588042,87199.0,87198.0,0.00131884]
[1764554476240,0.31316042,87199.0,87198.0,0.00131884]
[1764554476421,0.31516042,87199.0,87198.0,0.00131884]
[1764554476621,0.31316042,87199.0,87198.0,0.00131884]
[1764554477038,0.31516042,87199.0,87198.0,0.00131884]
[1764554477505,0.04341,87199.0,87198.0,0.00131884]
[1764554477715,0.01961,87199.0,87198.0,0.00131884]
[1764554477915,0.002,87199.0,87198.0,0.01271884]
[1764554478119,0.002,87199.0,87198.0,0.00131884]
[1764554478324,0.29177042,87199.0,87198.0,0.00131884]
[1764554478528,0.25584042,87199.0,87198.0,0.00131884]
[1764554479009,0.29177042,87199.0,87198.0,0.00131884]
[1764554480623,0.29177042,87199.0,87190.0,0.0004]
[1764554480624,0.01146881,87193.0,87190.0,0.0004]
[1764554480818,0.59476147,87191.0,87190.0,0.0004]
[1764554481232,0.63797147,87191.0,87190.0,0.0004]
[1764554482039,0.63797147,87191.0,87170.0,0.01187183]
[1764554482040,0.22943297,87172.0,87170.0,0.0004]
[1764554482210,0.22943297,87172.0,87130.0,0.2]
[1764554482211,0.01147407,87153.0,87140.0,0.01147578]
[1764554482486,0.04238,87151.0,87141.0,0.00598309]
[1764554482692,0.0179,87151.0,87142.0,0.01147552]
[1764554482870,0.0179,87151.0,87144.0,0.01147525]
[1764554483077,0.07831,87151.0,87141.0,0.00598309]
[1764554483286,0.07831,87151.0,87139.0,0.10874667]
[1764554483287,0.07831,87151.0,87140.0,0.01147578]
[1764554483514,0.40170365,87151.0,87132.0,0.00598309]
[1764554483685,0.40170365,87151.0,87132.0,0.11472976]
[1764554483886,0.40370365,87151.0,87132.0,0.10874667]
[1764554484083,0.40170365,87151.0,87132.0,0.10874667]
[1764554484295,0.40170365,87151.0,87129.0,0.10874667]
[1764554484471,0.40898365,87151.0,87135.0,0.01147644]
[1764554484675,0.40898365,87151.0,87132.0,0.01147683]
[1764554484873,0.40898365,87151.0,87133.0,0.0114767]
[1764554485075,0.40898365,87151.0,87130.0,0.0114771]
[1764554485434,0.41098365,87151.0,87133.0,0.0114767]
[1764554486180,0.40370365,87151.0,87137.0,0.01147618]
[1764554486387,0.41098365,87151.0,87138.0,0.01147604]
[1764554486585,0.40370365,87151.0,87139.0,0.01147591]
[1764554486999,0.41098365,87151.0,87141.0,0.01147565]
[1764554487216,0.41098365,87151.0,87142.0,0.01147552]
[1764554487417,0.41098365,87151.0,87141.0,0.01147565]
[1764554487593,0.41098365,87151.0,87142.0,0.01147552]
[1764554487968,0.41098365,87151.0,87130.0,0.24101902]
[1764554488139,0.41098365,87151.0,87132.0,0.01147683]
[1764554488347,0.41098365,87151.0,87139.0,0.01147591]
[1764554488899,0.41098365,87151.0,87137.0,0.01147618]
[1764554489104,0.41098365,87151.0,87135.0,0.02914643]
[1764554489489,0.41098365,87151.0,87135.0,0.01766999]
[1764554490190,0.40898365,87151.0,87135.0,0.01766999]
[1764554490347,0.42038365,87151.0,87135.0,0.01766999]
[1764554490562,0.42138365,87151.0,87135.0,0.01766999]
[1764554490765,0.40998365,87151.0,87135.0,0.01766999]
[1764554490994,0.40270365,87151.0,87129.0,0.10874667]
[1764554491176,0.37405365,87151.0,87138.0,0.01147604]
[1764554491377,0.37405365,87151.0,87150.0,0.01330844]
[1764554491378,0.00239365,87151.0,87150.0,0.01330844]
[1764554491579,0.00239365,87151.0,87150.0,0.1270188]
[1764554491809,0.00139365,87151.0,87150.0,0.1270188]
[1764554492017,0.00439365,87151.0,87150.0,0.1384188]
[1764554492220,0.00339365,87151.0,87150.0,0.12205511]
[1764554492550,0.00039365,87151.0,87150.0,0.1384188]
[1764554492756,0.00239365,87151.0,87150.0,0.1270188]
[1764554492889,0.00239365,87151.0,87150.0,0.1384188]
[1764554493096,0.00239365,87151.0,87150.0,0.1270188]
[1764554493317,0.00239365,87151.0,87150.0,0.35154449]
[1764554493515,0.00239365,87151.0,87150.0,0.23139782]
[1764554493828,0.00239365,87151.0,87150.0,0.24279782]
[1764554495437,0.00239365,87151.0,87150.0,0.00190844]
[1764554495661,0.00239365,87151.0,87150.0,0.01330844]
[1764554496024,0.00239365,87151.0,87150.0,0.00190844]
[1764554496454,0.00039365,87151.0,87150.0,0.00190844]
[1764554496854,0.00239365,87151.0,87150.0,0.00190844]
[1764554498030,0.38556365,87151.0,87150.0,0.00190844]
[1764554498566,0.38356365,87151.0,87150.0,0.00190844]
[1764554498769,0.38556365,87151.0,87150.0,0.00190844]
[1764554499273,0.34674365,87151.0,87150.0,0.00190844]
[1764554499494,0.34874365,87151.0,87150.0,0.00190844]
[1764554499824,0.38556365,87151.0,87150.0,0.00190844]
[1764554500062,0.34874365,87151.0,87150.0,0.00190844]
[1764554500462,0.38556365,87151.0,87150.0,0.00190844]
[1764554500775,0.34874365,87151.0,87150.0,0.00190844]
[1764554501010,0.32539365,87151.0,87150.0,0.00190844]
[1764554501575,0.32539365,87151.0,87150.0,0.01330844]
[1764554501576,0.00239365,87151.0,87150.0,0.01330844]
[1764554501778,0.00239365,87151.0,87150.0,0.07583143]
[1764554501977,0.00239365,87151.0,87150.0,0.12679517]
[1764554502176,0.00239365,87151.0,87150.0,0.11539517]
[1764554502538,0.00239365,87151.0,87150.0,0.01841853]
[1764554502742,0.00239365,87151.0,87150.0,0.01330844]
[1764554502951,0.00039365,87151.0,87150.0,0.03096598]
[1764554503497,0.00239365,87151.0,87150.0,0.03096598]
[1764554504189,0.01688,87191.0,87188.0,0.01146946]
[1764554504399,4.513e-05,87191.0,87189.0,0.10874667]
[1764554504973,4.513e-05,87191.0,87190.0,0.0114]
[1764554505270,4.513e-05,87191.0,87190.0,0.01766999]
[1764554505575,0.34092513,87191.0,87190.0,0.01766999]
[1764554505870,0.40009513,87191.0,87190.0,0.01766999]
[1764554506222,0.40109513,87191.0,87190.0,0.001]
[1764554507050,0.43681692,87191.0,87190.0,0.001]
[1764554507497,0.43269692,87191.0,87190.0,0.001]
[1764554507698,0.01147131,87174.0,87171.0,0.01766999]
[1764554507897,0.04025,87172.0,87171.0,0.01766999]
[1764554508305,0.09826363,87172.0,87171.0,0.01766999]
[1764554508893,0.07537,87172.0,87171.0,0.01766999]
[1764554509111,0.07637,87172.0,87171.0,0.01866999]
[1764554509596,0.09926363,87172.0,87171.0,0.01866999]
[1764554509842,0.09926363,87172.0,87171.0,0.00184829]
[1764554511003,0.10654363,87172.0,87171.0,0.00184829]
[1764554511243,0.08365,87172.0,87171.0,0.00184829]
[1764554511601,0.07637,87172.0,87171.0,0.00184829]
[1764554511804,0.04853,87172.0,87171.0,0.00184829]
[1764554513090,0.018,87172.0,87171.0,0.00184829]
[1764554513947,0.24743146,87172.0,87171.0,0.00184829]
[1764554514147,0.27068146,87172.0,87171.0,0.00184829]
[1764554514782,0.30580146,87172.0,87171.0,0.00184829]
[1764554516117,0.62880146,87172.0,87171.0,0.00184829]
[1764554516516,0.63608146,87172.0,87171.0,0.00184829]
[1764554517511,0.66045276,87172.0,87171.0,0.00184829]
[1764554518344,0.63608146,87172.0,87171.0,0.00184829]
[1764554519316,0.018,87172.0,87171.0,0.00184829]
[1764554519526,0.04125,87172.0,87171.0,0.00184829]
[1764554520320,0.07637,87172.0,87171.0,0.00184829]
[1764554521086,0.07637,87172.0,87154.0,0.01766999]
[1764554521087,0.22947622,87155.0,87154.0,0.01766999]
[1764554521314,0.00728,87155.0,87146.0,0.22949964]
[1764554521578,0.00728,87155.0,87147.0,0.10874667]
[1764554521579,0.01147394,87154.0,87147.0,0.10874667]
[1764554521753,0.24095279,87154.0,87149.0,0.0114746]
[1764554521975,0.25273675,87151.0,87140.0,0.01147578]
[1764554522119,0.25273675,87151.0,87144.0,0.01147525]
[1764554522331,0.02325,87151.0,87150.0,0.0011787]
[1764554522567,0.001,87155.0,87153.0,0.229479]
[1764554522736,0.001,87155.0,87154.0,0.02703805]
[1764554522737,0.00077057,87155.0,87154.0,0.02703805]
[1764554522963,0.00077057,87155.0,87154.0,0.03431858]
[1764554523474,0.00999999,87170.0,87167.0,0.02287223]
[1764554523660,0.00999999,87170.0,87169.0,0.33818603]
[1764554523862,0.03324999,87170.0,87167.0,0.0114]
[1764554524083,0.00999999,87170.0,87169.0,0.33818603]
[1764554524448,0.017,87177.0,87175.0,0.01147117]
[1764554524646,0.01147065,87179.0,87176.0,0.01147104]
[1764554524860,0.01147157,87172.0,87163.0,0.01147275]
[1764554525055,0.02325,87168.0,87167.0,0.01247223]
[1764554525312,0.02325,87168.0,87167.0,0.01147223]
[1764554525755,0.01147144,87173.0,87169.0,0.01147196]
[1764554525945,0.017,87176.0,87170.0,0.22943432]
[1764554526224,0.017,87176.0,87169.0,0.01147196]
[1764554526225,0.24089474,87175.0,87171.0,0.0114717]
[1764554526406,0.01147131,87174.0,87171.0,0.0114717]
[1764554526566,0.01147131,87174.0,87170.0,0.01147183]
[1764554526792,0.02847104,87176.0,87171.0,0.0114717]
[1764554527007,0.01147117,87175.0,87171.0,0.0114717]
[1764554527214,0.02325,87172.0,87165.0,0.01147249]
[1764554527467,0.03436494,87174.0,87168.0,0.01147209]
[1764554527630,0.2760226,87173.0,87171.0,0.001]
[1764554527829,0.01147157,87172.0,87168.0,0.01147209]
[1764554528035,0.02325,87169.0,87159.0,0.22946326]
[1764554528246,0.05792622,87166.0,87165.0,0.0173743]
[1764554529354,0.01147315,87160.0,87155.0,0.0173743]
[1764554529538,0.04025,87156.0,87155.0,0.0173743]
[1764554530212,0.017,87156.0,87155.0,0.0173743]
[1764554530525,0.04025,87156.0,87155.0,0.0183743]
[1764554530728,0.04025,87156.0,87155.0,0.0173743]
[1764554531204,0.04225,87156.0,87155.0,0.0183743]
[1764554531405,0.30684358,87156.0,87155.0,0.0183743]
[1764554531790,0.07737,87156.0,87155.0,0.0183743]
[1764554534835,0.002,87156.0,87155.0,0.24785052]
[1764554535086,0.00185767,87156.0,87155.0,0.25975339]
[1764554535500,0.00185767,87156.0,87155.0,0.32227638]
[1764554536069,0.00185767,87156.0,87155.0,0.31087638]
[1764554536274,0.00185767,87156.0,87155.0,0.32227638]
[1764554536497,0.017,87177.0,87175.0,0.0114]
[1764554536715,0.017,87177.0,87176.0,0.10874667]
[1764554537294,0.31363921,87177.0,87175.0,0.10874667]
[1764554537515,0.02337,87176.0,87175.0,0.10874667]
[1764554537754,0.05575,87176.0,87175.0,0.10874667]
[1764554538100,0.003,87177.0,87176.0,0.22942094]
[1764554538247,0.003,87177.0,87176.0,0.0114]
[1764554538682,0.003,87177.0,87175.0,0.33816795]
[1764554538867,0.003,87177.0,87176.0,0.07392299]
[1764554539044,0.00999999,87190.0,87184.0,0.01146999]
[1764554539248,0.01146933,87189.0,87184.0,0.0173743]
[1764554539445,0.02337,87185.0,87184.0,0.0173743]
[1764554540109,0.05575,87185.0,87184.0,0.0173743]
[1764554540314,0.05575,87185.0,87184.0,0.00011865]
[1764554540315,0.40892363,87185.0,87184.0,0.00011865]
[1764554540602,0.38603,87185.0,87184.0,0.00111865]
[1764554540905,0.38903,87185.0,87184.0,0.00111865]
[1764554543929,0.38175,87185.0,87184.0,0.00111865]
[1764554544130,0.38903,87185.0,87184.0,0.00111865]
[1764554548277,0.06603,87185.0,87184.0,0.00111865]
[1764554548504,0.02637,87185.0,87184.0,0.00111865]
[1764554548678,0.05931,87185.0,87184.0,0.00111865]
[1764554548882,0.01147117,87175.0,87172.0,0.0173743]
[1764554549183,0.26753883,87173.0,87172.0,0.01749247]
[1764554549525,0.26753883,87173.0,87172.0,0.00011817]
[1764554549729,0.30171883,87173.0,87172.0,0.00011817]
[1764554550229,0.30271883,87173.0,87172.0,0.00111817]
[1764554551427,0.30171883,87173.0,87172.0,0.00011817]
[1764554551793,0.30571883,87173.0,87172.0,0.00111817]
[1764554553047,0.31299883,87173.0,87172.0,0.00111817]
[1764554553457,0.63599883,87173.0,87172.0,0.00111817]
[1764554555390,0.62871883,87173.0,87172.0,0.00111817]
[1764554557351,0.63599883,87173.0,87172.0,0.00111817]
[1764554558426,0.64739883,87173.0,87172.0,0.00111817]
[1764554558628,0.63199883,87173.0,87172.0,0.00011817]
[1764554558833,0.63799883,87173.0,87172.0,0.00111817]
[1764554559672,0.64939883,87173.0,87172.0,0.00111817]
[1764554561423,0.87591883,87173.0,87172.0,0.00111817]
[1764554561629,0.04411,87173.0,87172.0,0.00111817]
[1764554561828,0.02198,87173.0,87172.0,0.01251817]
[1764554562417,0.006,87173.0,87172.0,0.01251817]
[1764554562610,0.006,87173.0,87172.0,0.07504116]
[1764554562815,0.01598,87198.0,87190.0,0.0114692]
[1764554563011,0.01598,87198.0,87197.0,0.0114]
[1764554563191,0.08375815,87198.0,87195.0,0.0114]
[1764554563392,0.02213,87196.0,87193.0,0.01146881]
[1764554563616,0.02213,87196.0,87195.0,0.10874667]
[1764554564160,0.05631,87196.0,87195.0,0.10874667]
[1764554564312,0.28567831,87196.0,87195.0,0.10874667]
[1764554564493,0.22937621,87193.0,87192.0,0.0114]
[1764554564858,0.02213,87193.0,87190.0,0.0173743]
[1764554565067,0.02213,87193.0,87190.0,0.0288435]
[1764554565503,0.02213,87191.0,87190.0,0.0288435]
[1764554565778,0.02213,87191.0,87190.0,0.0173743]
[1764554566356,0.05631,87191.0,87190.0,0.0173743]
[1764554566749,0.05631,87191.0,87190.0,0.0193743]
[1764554568061,0.05631,87191.0,87190.0,0.0173743]
[1764554568260,0.02313,87191.0,87190.0,0.0193743]
[1764554568447,0.001,87191.0,87190.0,0.0193743]
[1764554568649,0.22937083,87196.0,87194.0,0.0114]
[1764554568857,0.01146828,87197.0,87195.0,0.10874667]
[1764554569279,0.01598,87198.0,87196.0,0.10874667]
[1764554569512,0.01598,87198.0,87197.0,0.0114]
[1764554569869,0.03842,87198.0,87197.0,0.0114]
[1764554571816,0.03942,87198.0,87197.0,0.0134]
[1764554572016,0.01698,87198.0,87197.0,0.0134]
[1764554572679,0.03942,87198.0,87197.0,0.0134]
[1764554573428,0.26878305,87198.0,87197.0,0.0134]
[1764554573637,0.29994305,87198.0,87197.0,0.002]
[1764554574549,0.07058,87198.0,87197.0,0.002]
[1764554574894,0.03942,87198.0,87197.0,0.002]
[1764554575490,0.01698,87198.0,87197.0,0.002]
[1764554575800,0.01698,87198.0,87197.0,0.0134]
[1764554576141,0.01698,87198.0,87197.0,0.24276568]
[1764554576391,0.001,87198.0,87197.0,0.23136568]
[1764554576608,0.3776,87198.0,87197.0,0.002]
[1764554577104,0.001,87198.0,87197.0,0.24276568]
[1764554577431,0.001,87198.0,87197.0,0.29388867]
[1764554577616,0.001,87198.0,87197.0,0.30528867]
[1764554578218,0.001,87198.0,87197.0,0.31256867]
[1764554578418,0.001,87198.0,87197.0,3.02231667]
[1764554578619,0.001,87198.0,87197.0,2.89894767]
[1764554578787,0.001,87198.0,87197.0,2.89512167]
[1764554578987,0.001,87198.0,87197.0,3.40774867]
[1764554579398,0.001,87198.0,87197.0,3.50711067]
[1764554579609,0.00180112,87213.0,87212.0,0.22932623]
[1764554579802,0.00180112,87213.0,87212.0,0.43665019]
[1764554580262,0.00180112,87213.0,87212.0,0.20732396]
[1764554580910,0.00180112,87213.0,87212.0,0.53044213]
[1764554581070,0.01706,87247.0,87246.0,0.22923687]
[1764554581243,0.01706,87247.0,87246.0,0.25801117]
[1764554581652,0.00999999,87260.0,87251.0,0.0114]
[1764554581857,0.00999999,87260.0,87246.0,0.02883614]
[1764554581858,0.01146092,87253.0,87246.0,0.02883614]
[1764554582176,0.01745421,87252.0,87246.0,0.0183743]
[1764554582525,0.01745421,87252.0,87250.0,0.22922636]
[1764554582771,0.00339421,87252.0,87251.0,0.06352299]
[1764554582951,0.00292219,87252.0,87251.0,0.07492299]
[1764554583154,0.0004,87270.0,87267.0,0.02285908]
[1764554583350,0.0004,87270.0,87269.0,0.10874667]
[1764554583898,0.0004,87270.0,87269.0,0.18266966]
[1764554584985,0.02284,87270.0,87269.0,0.10874667]
[1764554585710,0.02284,87270.0,87269.0,0.11074667]
[1764554585711,0.02384,87270.0,87269.0,0.11074667]
[1764554585918,0.02384,87270.0,87269.0,0.12214667]
[1764554586046,0.0014,87270.0,87269.0,0.12214667]
[1764554586234,0.055,87270.0,87269.0,0.002]
[1764554586644,0.0014,87270.0,87269.0,0.002]
[1764554586842,0.0031885,87270.0,87269.0,0.0134]
[1764554587752,0.0031885,87270.0,87269.0,0.002]
[1764554588179,0.0031885,87270.0,87269.0,0.0134]
[1764554588985,0.0031885,87270.0,87269.0,0.002]
[1764554589206,0.0004,87280.0,87279.0,0.29167318]
[1764554589408,0.0004,87280.0,87279.0,0.32772748]
[1764554589814,0.0004,87280.0,87279.0,0.65072748]
[1764554590015,0.0004,87290.0,87289.0,0.55212394]
[1764554590269,0.02851186,87322.0,87289.0,0.55212394]
[1764554590270,0.03116,87341.0,87308.0,0.06252299]
[1764554590542,7.256e-05,87335.0,87334.0,0.40027554]
[1764554590744,7.256e-05,87335.0,87334.0,0.0173743]
[1764554590922,0.05367256,87335.0,87334.0,0.0173743]
[1764554591301,0.28267582,87335.0,87334.0,0.0173743]
[1764554591501,0.05367256,87335.0,87334.0,0.0173743]
[1764554592108,0.02251256,87335.0,87334.0,0.0173743]
[1764554592518,0.02551256,87335.0,87334.0,0.0183743]
[1764554592721,0.00307256,87335.0,87334.0,0.0183743]
[1764554593148,0.00307256,87335.0,87334.0,0.0297743]
[1764554593761,0.00307256,87335.0,87334.0,0.0183743]
[1764554593927,0.00307256,87335.0,87334.0,0.0297743]
[1764554594128,0.00307256,87335.0,87334.0,0.13852097]
[1764554594496,0.00307256,87335.0,87334.0,0.20104396]
[1764554594831,0.00307256,87335.0,87334.0,0.12712097]
[1764554595042,0.00307256,87335.0,87334.0,0.14580097]
[1764554595509,0.05667256,87335.0,87334.0,0.12712097]
[1764554595834,0.05667256,87335.0,87334.0,0.0183743]
[1764554597074,0.01145226,87319.0,87317.0,0.0173743]
[1764554597276,0.01145226,87319.0,87304.0,0.10874667]
[1764554597277,0.01145265,87316.0,87313.0,0.0114]
[1764554597424,0.22904784,87318.0,87315.0,0.0173743]
[1764554597425,0.02780239,87318.0,87315.0,0.0173743]
[1764554597753,0.22905309,87316.0,87315.0,0.0173743]
[1764554597952,0.25025309,87316.0,87315.0,0.0173743]
[1764554598252,0.28354309,87316.0,87315.0,0.0173743]
[1764554599036,0.28654309,87316.0,87315.0,0.0183743]
[1764554599257,0.28654309,87316.0,87315.0,0.001]
[1764554599460,0.60954309,87316.0,87315.0,0.001]
[1764554599904,0.22910294,87297.0,87296.0,0.0173743]
[1764554600105,0.22910294,87297.0,87270.0,0.01145869]
[1764554600106,0.01145724,87281.0,87271.0,0.01873856]
[1764554600315,0.01145711,87282.0,87280.0,0.10874667]
[1764554600465,0.0212,87281.0,87280.0,0.10874667]
[1764554601038,0.01635,87286.0,87284.0,0.0114]
[1764554601235,0.33445619,87289.0,87284.0,0.0114]
[1764554601443,0.01635,87291.0,87284.0,0.02285685]
[1764554601645,0.01145606,87290.0,87284.0,0.01145685]
[1764554601853,0.01145606,87290.0,87289.0,0.0114]
[1764554602058,0.01145606,87290.0,87283.0,0.01145698]
[1764554602411,0.01635,87291.0,87289.0,0.0114]
[1764554605020,0.01635,87297.0,87296.0,0.12014667]
[1764554605398,0.01835,87297.0,87296.0,0.12114667]
[1764554605799,0.002,87297.0,87296.0,0.12114667]
[1764554606438,0.002,87297.0,87296.0,0.1381026]
[1764554607242,0.002,87297.0,87296.0,0.10974667]
[1764554608566,0.002,87297.0,87296.0,0.19948055]
[1764554609065,0.002,87297.0,87296.0,0.18808055]
[1764554609562,0.002,87297.0,87296.0,0.19948055]
[1764554610756,0.00284665,87297.0,87296.0,0.19948055]
[1764554611336,0.00284665,87297.0,87296.0,0.12114667]
[1764554611489,0.02472665,87297.0,87296.0,0.001]
[1764554611695,0.02272665,87297.0,87296.0,0.0114]
[1764554611904,0.02272665,87297.0,87290.0,0.00728]
[1764554611905,0.01145527,87296.0,87295.0,0.10874667]
[1764554612266,0.04448514,87297.0,87295.0,0.10874667]
[1764554612466,0.02188,87296.0,87295.0,0.10874667]
[1764554613010,0.00999999,87290.0,87266.0,0.08533358]
[1764554613206,0.02188,87281.0,87280.0,7.238e-05]
[1764554613409,0.2509458,87281.0,87280.0,7.238e-05]
[1764554613630,0.02704619,87289.0,87280.0,7.238e-05]
[1764554613631,0.01559,87314.0,87305.0,0.01145409]
[1764554613960,0.01559,87326.0,87315.0,0.01145278]
[1764554613961,0.02704134,87326.0,87315.0,0.01145278]
[1764554614114,0.01145199,87321.0,87317.0,0.0114]
[1764554614329,0.24048575,87324.0,87317.0,0.0114]
[1764554614531,0.0114516,87324.0,87315.0,0.02285278]
[1764554614735,0.01559,87326.0,87319.0,0.01145226]
[1764554614936,0.01559,87327.0,87325.0,0.12014667]
[1764554615134,0.01570857,87327.0,87325.0,0.10874667]
[1764554615433,0.01570857,87327.0,87324.0,0.0114516]
[1764554615628,0.01570857,87327.0,87324.0,0.24048359]
[1764554616013,0.001,87326.0,87324.0,0.0114516]
[1764554616243,0.02188,87325.0,87322.0,0.12019853]
[1764554616840,0.02188,87323.0,87322.0,0.10874667]
[1764554617241,0.28294473,87323.0,87322.0,0.10874667]
[1764554617445,0.28294473,87323.0,87309.0,0.00728]
[1764554617446,0.01145291,87314.0,87309.0,0.00728]
[1764554617642,0.03333291,87314.0,87309.0,0.00728]
[1764554617849,0.2624048,87310.0,87301.0,0.00728]
[1764554618073,0.01145527,87296.0,87288.0,0.01145632]
[1764554618284,0.24056048,87297.0,87291.0,0.11602667]
[1764554618285,0.01559,87292.0,87291.0,0.11602667]
[1764554618428,0.01559,87292.0,87290.0,0.10874667]
[1764554618632,0.01559,87292.0,87290.0,0.33786625]
[1764554619037,0.01559,87302.0,87297.0,0.01145514]
[1764554619258,0.01559,87302.0,87301.0,0.0114]
[1764554619661,0.01559,87302.0,87294.0,0.01145554]
[1764554619662,0.01145501,87298.0,87294.0,0.01145554]
[1764554619990,0.24054707,87301.0,87296.0,0.01145527]
[1764554620243,0.01145462,87301.0,87297.0,0.01145514]
[1764554620406,0.22909507,87300.0,87291.0,0.22911711]
[1764554620606,0.22911869,87291.0,87290.0,0.11074667]
[1764554621003,0.22911869,87291.0,87290.0,0.10874667]
[1764554621213,0.24057046,87293.0,87290.0,0.10874667]
[1764554621426,0.02188,87291.0,87290.0,0.10874667]
[1764554621635,0.01145488,87299.0,87292.0,0.0114558]
[1764554621801,0.01145488,87299.0,87290.0,0.12120273]
[1764554621802,0.001,87291.0,87290.0,0.12120273]
[1764554622329,0.001,87291.0,87290.0,0.10874667]
[1764554622330,0.02188,87291.0,87290.0,0.10874667]
[1764554622659,0.03203,87299.0,87290.0,0.10874667]
[1764554622660,0.00166144,87323.0,87291.0,0.06252299]
[1764554622874,0.03019675,87335.0,87324.0,0.0114516]
[1764554623073,0.0002,87340.0,87334.0,0.01145029]
[1764554623313,0.0002,87340.0,87337.0,0.24044605]
[1764554623314,0.00059539,87340.0,87337.0,0.24044605]
[1764554623580,0.00059539,87340.0,87339.0,0.29151576]
[1764554624333,0.00059539,87340.0,87339.0,0.29879576]
[1764554624534,0.00059539,87340.0,87339.0,0.40754243]
[1764554624778,0.00059539,87340.0,87339.0,0.41894243]
[1764554624982,0.00059539,87340.0,87339.0,0.41166243]
[1764554625284,0.00059539,87340.0,87339.0,0.42094243]
[1764554625285,0.00159539,87340.0,87339.0,0.42094243]
[1764554625548,0.00059539,87340.0,87339.0,0.41166243]
[1764554625719,0.00059539,87340.0,87339.0,0.41994243]
[1764554626103,0.00159539,87340.0,87339.0,0.42094243]
[1764554626304,0.00159539,87340.0,87339.0,0.42194243]
[1764554626849,0.00159539,87340.0,87339.0,0.41366243]
[1764554626987,0.00159539,87340.0,87339.0,0.42094243]
[1764554627188,0.00159539,87340.0,87339.0,0.82194243]
[1764554627389,0.00159539,87340.0,87339.0,0.81994243]
[1764554627636,0.00059539,87340.0,87339.0,0.81266243]
[1764554627835,0.00159539,87340.0,87339.0,0.41154243]
[1764554628078,0.00159539,87340.0,87339.0,0.12002667]
[1764554628252,0.00059539,87340.0,87339.0,0.17954966]
[1764554628453,0.00378932,87340.0,87339.0,0.19294966]
[1764554628652,0.00378932,87340.0,87339.0,0.19295495]
[1764554628829,0.00278932,87340.0,87339.0,0.19095495]
[1764554629032,0.00378932,87340.0,87339.0,0.13043196]
[1764554629197,0.00378932,87340.0,87339.0,0.12943196]
[1764554629436,0.00378932,87340.0,87339.0,0.12315196]
[1764554629845,0.05860932,87340.0,87339.0,0.01440529]
[1764554630405,0.05860932,87340.0,87339.0,0.001]
[1764554630406,0.05760932,87340.0,87339.0,0.001]
[1764554630604,0.07597456,87340.0,87339.0,0.003]
[1764554630947,0.07597456,87340.0,87339.0,0.001]
[1764554630948,0.07497456,87340.0,87339.0,0.001]
[1764554631147,0.40097456,87340.0,87339.0,0.002]
[1764554631403,0.38360932,87340.0,87339.0,0.001]
[1764554631603,0.01145016,87335.0,87330.0,0.01145081]
[1764554631899,0.01145029,87334.0,87330.0,0.01145081]
[1764554632101,0.01699,87331.0,87330.0,0.01145081]
[1764554632244,0.03866,87331.0,87330.0,0.01145081]
[1764554632705,0.01145003,87336.0,87330.0,0.01145081]
[1764554632921,0.01699,87353.0,87345.0,0.01144885]
[1764554633124,0.00011854,87353.0,87352.0,0.0114]
[1764554633292,0.00011854,87353.0,87352.0,0.30288168]
[1764554634094,0.00011854,87353.0,87352.0,0.29148168]
[1764554634515,0.00011854,87353.0,87352.0,0.30288168]
[1764554634730,0.00011854,87353.0,87352.0,0.30688168]
[1764554634731,0.00111854,87353.0,87352.0,0.30688168]
[1764554635475,0.00011854,87353.0,87352.0,0.30288168]
[1764554636082,0.00011854,87353.0,87352.0,0.30388168]
[1764554636589,0.01710854,87353.0,87352.0,0.29248168]
[1764554636779,0.01810854,87353.0,87352.0,0.29948168]
[1764554637150,0.01710854,87353.0,87352.0,0.29248168]
[1764554637360,0.07552953,87353.0,87352.0,0.006]
[1764554637749,0.07552953,87353.0,87336.0,0.01873003]
[1764554637750,0.01145094,87329.0,87320.0,0.01140529]
[1764554637990,0.02167,87321.0,87320.0,0.01140529]
[1764554638337,0.05482,87321.0,87320.0,0.01140529]
[1764554638872,0.02167,87321.0,87320.0,0.01140529]
[1764554639073,0.2290013,87336.0,87320.0,0.01140529]
[1764554639074,0.01699,87342.0,87338.0,0.01144976]